Cogmind - Beta 14 @@@ ROGUE MODE // 2024.11.27 @ 09:12:06 Player: The Gourd Result: Destroyed by Y-45 Defender with Beam Rifle Performance ------------- Evolutions (0) 0 Regions Visited (2) 400 Robots Destroyed (18) 90 Value Destroyed (443) 443 Prototype IDs (0) 0 Alien Tech Used (0) 0 Bonus (0) 0 TOTAL SCORE: 933 Bonus ------- None Cogmind --------- Core Integrity 0/250 Matter 421/500 Energy 16/250 System Corruption 1% Temperature Hot (242) Movement Rolling (125) Ox3 Location -10/Mines Parts ------- > --- POWER (1) -------- Ion Engine > --- PROPULSION (2) --- Light Treads Wheel > --- UTILITY (2) ------ Large Storage Unit High-capacity Matter Pod > --- WEAPON (2) ------- Light Assault Rifle Light Assault Rifle > --- INVENTORY (15) --- Ion Engine Compact Wheel Peak State ------------ > --- POWER ------------ Ion Engine > --- PROPULSION ------- Light Treads Wheel > --- UTILITY ---------- Medium Storage Unit Seismic Detector > --- WEAPON ----------- Light Assault Rifle Light Assault Rifle > --- INVENTORY -------- Ion Engine Light Treads Light Treads Wheel Compact Wheel High-capacity Matter Pod EM Pulse Gun Light Assault Rifle Light Cannon Mining Laser [Rating: 8] Favorites ----------- Power Ion Engine Engine Ion Engine Propulsion Light Treads Treads Light Treads Wheel Wheel Utility Seismic Detector Device Seismic Detector Storage Large Storage Unit Weapon Light Assault Rifle Energy Gun EM Pulse Gun Ballistic Gun Light Assault Rifle Ballistic Cannon Light Cannon Special Weapon Mining Laser Build | -11 -10 -10 ------- Run | Yrd Mat Min Slots Evolved . | . . . Power . | . . . Propulsion . | . . . Utility . | . . . Weapon . | . . . Parts Attached 27 | 7 10 10 Power 6 | 1 4 1 Engine 6 | 1 4 1 Core . | . . . Reactor . | . . . Propulsion 7 | 2 2 3 Treads 5 | 1 2 2 Leg . | . . . Wheel 2 | 1 . 1 Hover . | . . . Flight . | . . . Utility 5 | 2 2 1 Device 1 | 1 . . Storage 4 | 1 2 1 Processor . | . . . Hackware . | . . . Protection . | . . . Artifact . | . . . Weapon 9 | 2 2 5 Energy Gun 1 | . . 1 Energy Cannon . | . . . Ballistic Gun 6 | 2 2 2 Ballistic Cannon 1 | . . 1 Launcher . | . . . Special Weapon 1 | . . 1 Impact Weapon . | . . . Slashing Weapon . | . . . Piercing Weapon . | . . . Special Melee Weapon . | . . . Unidentified Prototypes . | . . . Parts Lost 11 | . 2 9 Power 2 | . 1 1 Propulsion 4 | . 1 3 Utility 1 | . . 1 Weapon 4 | . . 4 Highest Loss Streak 7 | . 2 7 To Critical Strikes . | . . . Average Slot Usage (%) 98 | . 100 95 Engine 13 | . 14 13 Treads 23 | . 22 25 Wheel 4 | . 5 . Device 14 | . 14 14 Storage 14 | . 14 14 Ballistic Gun 23 | . 28 12 Special Weapon 2 | . . 9 Peak Build Rating 8 | 7 8 8 Average Rating 7 | 5 7 7 On Entrance 5 | . 7 8 Naked Turns . | . . . Heaviest Build 30 | 13 28 30 Greatest Support 40 | 20 40 40 Greatest Overweight (x) 1 | 1 1 1 Average Overweight (x) . | . . . Largest Inventory Capacity 15 | 8 15 15 Average Capacity 11 | 7 11 15 Most Carried 12 | 6 12 11 Average Carried 8 | 3 9 9 Final Capacity 15 | 8 15 15 Final Carried 11 | 6 11 2 Class Distribution -------------------- 55% | Mutant 44% | Scavenger-Mutant Dominant Class ---------------- Scavenger-Mutant | -10/Materials Mutant | -10/Mines Resources | -11 -10 -10 ----------- Run | Yrd Mat Min Matter Collected 729 | 258 340 131 Remotely . | . . . Salvage Created 580 | 82 361 137 Parts 41 | 6 26 9 Haulers Intercepted 2 | . 2 . Recyclers Shooed 1 | 1 . . Parts Field Recycled . | . . . Retrieved Matter . | . . . Parts Self-Destructed . | . . . Prevented . | . . . Kills | -11 -10 -10 ------- Run | Yrd Mat Min Combat Hostiles Destroyed 14 | . 8 6 Guns 10 | . 8 2 Cannons 4 | . . 4 Classes Destroyed 6 | 2 3 1 Tunneler 2 | 1 . 1 Hauler 2 | . 2 . Recycler 1 | 1 . . Swarmer 3 | . 3 . Grunt 10 | . 5 5 Assembled 1 | . . 1 Best Kill Streak 3 | 1 3 3 Combat Bots Only 3 | . 3 2 Max Kills in Single Turn 1 | 1 1 1 Gunslinging . | . . . Exploded . | . . . Melee . | . . . Uniques/NPCs Destroyed . | . . . Combat | -11 -10 -10 -------- Run | Yrd Mat Min Hostile Shots Fired 142 | . 63 79 Missed 37 | . 20 17 Damage Taken 1435 | . 592 843 Core 253 | . 113 140 Absorbed by Shields . | . . . Core Remaining (%) 100 | 100 . . Volleys Fired 87 | 9 40 38 Largest 2 | 2 2 2 Hottest 135 | 40 40 135 Shots Fired 160 | 18 81 61 Gun 136 | 18 81 37 Cannon 9 | . . 9 Launcher . | . . . Special 15 | . . 15 Kinetic 138 | 18 81 39 Thermal 15 | . . 15 Explosive . | . . . Electromagnetic 7 | . . 7 Robot Hit Streak 11 | 5 10 11 Robot Miss Streak 3 | 1 3 2 Penetration Max . | . . . Secondary Targets 2 | . 1 1 Max Gunslinging Chain 1 | . 1 1 Shots Hit Robots 104 | 13 58 33 Core Hits 42 | 5 24 13 Critical Kills 1 | . 1 . Critical Parts Destroyed . | . . . Critical Strikes 1 | . 1 . Destroy 1 | . 1 . Melee Attacks . | . . . Impact . | . . . Slashing . | . . . Piercing . | . . . Sneak Attacks . | . . . Combat Hostiles . | . . . Follow-up Attacks . | . . . Damage Inflicted 1029 | 105 482 442 Guns 803 | 105 479 219 Cannons 103 | . . 103 Explosions . | . . . Melee . | . . . Ramming 3 | . 3 . Kinetic 827 | 105 479 243 Thermal 120 | . . 120 Explosive . | . . . Electromagnetic 79 | . . 79 Impact . | . . . Slashing . | . . . Piercing . | . . . Highest Corruption 1 | . 1 1 Average Corruption 1 | . 1 1 Corruption Purged . | . . . Corruption Blocked . | . . . Effects 11 | . 6 5 Matter Fused 4 | . 1 3 Heat Flow Errors 3 | . 3 . Parts Rejected 1 | . 1 . Data Loss (minor) 2 | . . 2 Misfires 1 | . 1 . Overload Shots . | . . . Overflow Damage . | . . . Projectiles . | . . . Explosions . | . . . Melee . | . . . Knockbacks . | . . . Impact . | . . . Kinetic . | . . . Secondary . | . . . Self-Inflicted Damage 1 | . 1 . Shots . | . . . Rammed 1 | . 1 . Targets Rammed 1 | . 1 . Kicked . | . . . Crushed . | . . . Highest Temperature 275 | . 191 275 Average Temperature 52 | . 44 57 Received Heat Transfer 710 | . 258 452 Effects 2 | . . 2 Energy Bleed 2 | . . 2 Siege Activations . | . . . Robots Corrupted . | . . . Combat Hostiles . | . . . Parts Fried . | . . . Impact Corruptions . | . . . Robots Melted . | . . . Combat Hostiles . | . . . Parts Melted . | . . . Heat Transferred 250 | . . 250 Parts Sabotaged . | . . . Parts Stolen . | . . . Parts Stripped . | . . . Power Chain Reactions . | . . . Alert | -11 -10 -10 ------- Run | Yrd Mat Min Peak Influence 213 | 10 213 132 Initial 19 | . 6 19 Average 61 | 2 67 69 Maximum Alert Level 1 | . 1 . Low Security (%) 95 | 100 92 100 Level 1 4 | . 7 . Level 2 . | . . . Level 3 . | . . . Level 4 . | . . . Level 5 . | . . . High Security . | . . . Max Security . | . . . Squads Dispatched 1 | . 1 . Investigation . | . . . Extermination . | . . . Reinforcement 1 | . 1 . Assault . | . . . Garrison . | . . . Intercept . | . . . Searches Triggered . | . . . Construction Impeded . | . . . Haulers Reinforced . | . . . Active Scanning Responses . | . . . Cargo Convoy Interrupts . | . . . Stealth | -11 -10 -10 --------- Run | Yrd Mat Min Distress Signals 2 | . 1 1 Communications Jammed . | . . . Distress Signals . | . . . Times Spotted 31 | . 20 11 Peak Tracking Total 6 | . 6 5 Tactical Retreats 1 | . . 1 Traps | -11 -10 -10 ------- Run | Yrd Mat Min Traps Triggered 1 | . 1 . Indirectly . | . . . Trap Hack Attempts . | . . . Triggered . | . . . Disarmed . | . . . Reprogrammed . | . . . Reused . | . . . Traps Extracted . | . . . Installed . | . . . Triggered . | . . . Machines | -11 -10 -10 ---------- Run | Yrd Mat Min Machines Disabled 1 | . . 1 Max in Single Turn 1 | . . 1 Machines Repaired . | . . . Machines Dismantled . | . . . Machines Sabotaged . | . . . Overloaded Fab Kills . | . . . Hacking | -11 -10 -10 --------- Run | Yrd Mat Min Machines Accessed 7 | . 6 1 Terminals 7 | . 6 1 Fabricators . | . . . Repair Stations . | . . . Recycling Units . | . . . Scanalyzers . | . . . Garrison Access . | . . . Total Hacks 17 | . 15 2 Successful 5 | . 4 1 Failed 12 | . 11 1 Catastrophic 5 | . 5 . Database Lockouts . | . . . Manual 14 | . 14 . Terminals 17 | . 15 2 Fabricators . | . . . Repair Stations . | . . . Recycling Units . | . . . Scanalyzers . | . . . Garrison Access . | . . . Terminal Hacks 3 | . 2 1 Branch Access Points 1 | . 1 . Unreport Threat 1 | . 1 . Zone Layout 1 | . . 1 Fabricator Hacks . | . . . Repair Station Hacks . | . . . Recycling Unit Hacks . | . . . Scanalyzer . | . . . Garrison Access Hacks . | . . . Unauthorized Hacks 2 | . 2 . Terminals 2 | . 2 . Botnet 2 | . 2 . Fabricators . | . . . Repair Stations . | . . . Recycling Units . | . . . Scanalyzers . | . . . Garrison Access . | . . . Data Cores Recovered . | . . . Used . | . . . Hacking Detections 7 | . 6 1 Full Trace Events 1 | . 1 . Feedback Events . | . . . Feedback Blocked . | . . . Robot Schematics Acquired . | . . . Robots Built . | . . . Authchips . | . . . Time . | . . . Total Robot Build Rating . | . . . Part Schematics Acquired . | . . . Parts Built . | . . . Authchips . | . . . Time . | . . . Total Part Build Rating . | . . . Parts Repaired . | . . . Time . | . . . Parts Recycled . | . . . Recycled Matter . | . . . Retrieved Matter . | . . . Retrieved Components . | . . . Parts Scanalyzed . | . . . Part Schematics Acquired . | . . . Parts Damaged . | . . . Bothacking | -11 -10 -10 ------------ Run | Yrd Mat Min Used RIF Installer . | . . . Robots Hacked . | . . . Non-combat . | . . . Combat . | . . . Robot Hacks Applied . | . . . Relay Couplers Released . | . . . Fabnet Peak Effective % . | . . . Robots Rewired . | . . . Allies Hacked . | . . . Hacks Repelled . | . . . Allies | -11 -10 -10 -------- Run | Yrd Mat Min Total Allies . | . . . Largest Group . | . . . Highest-Rated Group . | . . . Highest-Rated Ally . | . . . Total Orders . | . . . Ally Attacks . | . . . Total Damage . | . . . Kills . | . . . Allies Corrupted . | . . . Allies Melted . | . . . Intel | -11 -10 -10 ------- Run | Yrd Mat Min Robot Analysis Total . | . . . Derelict Logs Recovered . | . . . Drone Launches . | . . . Drone Recoveries . | . . . Exploration | -11 -10 -10 ------------- Run | Yrd Mat Min Turns Passed 1193 | 119 758 316 Spaces Moved 610 | 74 478 58 Core 1 | 1 . . Treads 302 | 11 233 58 Legs . | . . . Wheels 307 | 62 245 . Hover . | . . . Flight . | . . . Fastest Speed 50 | 50 95 160 Average Speed 127 | 103 126 166 Slowest Speed 240 | 160 160 240 Overloaded Moves . | . . . Propulsion Burnouts . | . . . Robots Hopped . | . . . Cave-ins Triggered . | . . . Exploration Rate (%) 26 | 4 66 8 Regions Visited 2 Branch Regions 1 Pre-discovered Areas . | . . . Known Exits Taken 1 | . 1 . Unknown Exits Taken 1 | 1 . . Scrap Searched . | . . . Spaces Dug . | . . . Terrain Destroyed 2 | . . 2 Melee . | . . . Projectile 2 | . . 2 AOE . | . . . Terrain Rammed . | . . . Walls Destroyed . | . . . Machines Disabled . | . . . Actions | -11 -10 -10 --------- Run | Yrd Mat Min Total 859 | 98 567 194 Wait 120 | 3 29 88 Move 608 | 73 477 58 Hop . | . . . Pick Up 11 | 6 5 . Fast Attach 8 | 7 1 . Attach 11 | . 2 9 Detach . | . . . Swap 8 | . 7 1 Drop 5 | . 5 . Fire 87 | 9 40 38 Melee . | . . . Ram 1 | . 1 . Kick . | . . . Crush . | . . . Escape Stasis . | . . . Rewire . | . . . Trap . | . . . Miscellaneous . | . . . Route ------- -11/Scrapyard -10/Materials (discovered 3 exits: [*Mat x2] / *Min) -10/Mines (discovered 1 exit: [Mat]) History --------- Turn | Location | Event 14 | -11/Scrapyard | Discovered new exit (range 15) 120 | -11/Scrapyard | Entered Materials 195 | -10/Materials | Discovered new exit (range 16) 300 | -10/Materials | Build established: Mutant 404 | -10/Materials | Discovered new exit (range 15) 676 | -10/Materials | Build established: Scavenger-Mutant 827 | -10/Materials | Identified exit to Mines 878 | -10/Materials | Entered Mines 882 | -10/Mines | Discovered new exit (range 5) 885 | -10/Mines | Excavation squad dispatched 885 | -10/Mines | A large section of the Mines collapsed 891 | -10/Mines | Core integrity fell below 50% 1135 | -10/Mines | Excavation squad dispatched 1189 | -10/Mines | Core integrity fell below 20% 1194 | -10/Mines | Destroyed by Y-45 Defender with Beam Rifle Last Messages --------------- 01143_ T-07 Excavator is excavating. 01146_ G-34 Mercenary suffers critical hit (Burn). 01146_ T-07 Excavator is excavating. 01149_ System corrupted: Matter fused (-5). 01163_ Terminal disabled. 01164_ Acquired 4 matter. 01166_ Lgt. Treads destroyed. 01167_ Mining Laser destroyed. 01170_ G-34 Mercenary misfires. 01172_ G-34 Mercenary destroyed. 01181_ Critical hit (Burn: +37). 01186_ Lgt. Cannon destroyed. 01187_ Ion Engine destroyed. 01189_ G-47 Trooper misfires. 01189_ EM Pulse Gun destroyed. 01190_ Overheating: Energy bleed (-9). 01191_ Seismic Detector destroyed. 01192_ Critical hit (Burn: +37). 01193_ Overheating: Energy bleed (-8). Map ----- +----------------------------------------------------+ | | | | | | | | | | | | | | | | | | | | | | | | | | | | | | | | | | | ?????????????????????????????????????????????????? | | ?????????????????????????????####????????????????? | | ????????????????????????????## ##???????????????? | | ???????????????????########## ###?????????????? | | ???????????????????# ## ##????##??????? | | ???????????????????# ## ##??## ??????? | | ???????????????????# % ### #### ??????? | | ???????????????????# ==[ #?### ## ??????? | | ???????????????????# Y = @*##??## ??????? | | ???????????????????# #"###Yg######## ??????? | | ???????????????????#######=### #### #??????? | | ???????????????????# # #"### < #?##### #??????? | | ???????????????????# # ## ##????# #??????? | | ???????????????????#### "## ##???# #??????? | | ??????????????????????# ## #???# #??????? | | ??????????????????????# ## #???# #??????? | | ????????????????????### ### #???# #??????? | | ???????????????????## #?# ## #???# ??????? | | ???????????????????# " ##?# ### ##???# #??????? | | ???????????????????## ##?# #?####????# #??????? | | ????????????????????#" "##?# #?????????# #??????? | | ????????????????????##" #?# #?????????# #??????? | | ????????????????????# #?# ###???????# #??????? | | ????????????????????## ##?# ##??????# #??????? | | ?????????????????????# #?## #??????# #??????? | | ?????????????????????# #????????????????????????? | | ????????????????????? " ????????????????????????? | | ???????????????????? #????????????????????????? | | ???????????????????# % ????????????????????????? | | ???????????????????# ????????????????????????? | | ???????????????????" ????????????????????????? | | ?????????????????? / ???????????????????????? | | ?????????????????? # ???????????????????????? | +----------------------------------------------------+ Best States ------------- Heat Dissipation 25 Energy Generation 10 Energy Capacity 250 Matter Stores 300 Matter Capacity 300 Sight Range 16 Terrain Scan Density 10 Evasion (%) 41 Recoil Reduction 2 Item Schematics ----------------- None Robot Schematics ------------------ None Fabricated ------------ Nothing Alien Tech Used ----------------- None Achievements -------------- None Challenges ------------ None Game ------ Seed EtherialAnalysisProtomatter Manual? 0 Play Time 00:14:09 Cumulative 78.8 hours Start 2024.11.27 @ 09:00:47 End 2024.11.27 @ 09:12:06 Sessions 1 Manual Loads 0 Difficulty Rogue Special Mode None Game No. 54 Rogue 54 Adventurer 0 Explorer 0 Win Type - Total 1 Types 1/0/0/0/0/0/0/0/0 Lore% 23 Gallery% 43 Achievement% 43 Wizard Run 0 Options --------- Layout 2 ASCII 0 Keyboard 1 Movement Vi Keybinds 1 Fullscreen 1 Font 32/SmallcapsGlow Map View 50x44 Zoom Use 0% Tactical HUD 1 Map Filters NONE Filters NONE Steam 1 RUN: 22ee10d2-9df0-4b9c-b922-be9692f8eb2a